fUSD/lending_fUSD_20241209
["ID","MTS","AMOUNT","RATE_DAILY","PERIOD"]
[344792930,1733788315342,-768.06,0.00024117,2]
[344792931,1733788315352,-435.47,0.00024117,2]
[344792932,1733788315362,-25000.0,0.00024122,2]
[344792933,1733788315372,-5000.0,0.00024123,2]
[344792934,1733788315382,-2000.0,0.00024124,31]
[344792935,1733788315392,-1979.44,0.00024124,2]
[344792936,1733788315402,-5000.0,0.00024159,2]
[344792937,1733788315412,-5000.0,0.00024174,2]
[344792938,1733788315422,-2543.71,0.00024182,2]
[344792939,1733788315431,-25000.0,0.00024183,2]
[344792940,1733788315441,-402.69303,0.0002421,2]
[344792941,1733788315451,-3528.56357138,0.0002421,2]
[344792942,1733788315460,-1238.65,0.00024216,2]
[344792943,1733788315470,-1883.5,0.00024216,2]
[344792944,1733788315479,-4248.21,0.00024222,2]
[344792945,1733788315489,-2543.71,0.00024258,2]
[344792946,1733788315499,-500.79568794,0.0002431,2]
[344792947,1733788315509,-500.56178266,0.0002431,2]
[344792948,1733788315519,-500.48626826,0.0002431,2]
[344792949,1733788315528,-500.0,0.0002431,2]
[344792950,1733788315539,-500.0,0.0002431,2]
[344792951,1733788315548,-500.0,0.0002431,2]
[344792952,1733788315558,-500.0,0.0002431,2]
[344792953,1733788315570,-500.0,0.0002431,2]
[344792954,1733788315581,-899.83840371,0.0002431,2]
[344792955,1733788315591,-500.0,0.0002431,2]
[344792956,1733788315601,-500.0,0.0002431,2]
[344792957,1733788315615,-500.0,0.0002431,2]
[344792958,1733788315625,-500.0,0.0002431,2]
[344792959,1733788315634,-500.0,0.0002431,2]
[344792960,1733788315644,-509.81875036,0.0002431,2]
[344792961,1733788315654,-744.64310371,0.0002431,2]
[344792962,1733788315664,-500.0,0.0002431,2]
[344792963,1733788315674,-500.0,0.0002431,2]
[344792964,1733788315684,-500.0,0.0002431,2]
[344792965,1733788315694,-500.0,0.0002431,2]
[344792966,1733788315704,-500.0,0.0002431,2]
[344792967,1733788315714,-500.0,0.0002431,2]
[344792968,1733788315723,-500.0,0.0002431,2]
[344792969,1733788315733,-500.0,0.0002431,2]
[344792970,1733788315743,-500.0,0.0002431,2]
[344792971,1733788315752,-670.23841393,0.0002431,2]
[344792972,1733788315762,-500.0,0.0002431,2]
[344792973,1733788315772,-500.0,0.0002431,2]
[344792974,1733788315781,-926.64741112,0.0002431,2]
[344792975,1733788315791,-500.0,0.0002431,2]
[344792976,1733788315800,-775.31060735,0.0002431,2]
[344792977,1733788315810,-500.0,0.0002431,2]
[344792978,1733788315821,-500.0,0.0002431,2]
[344792979,1733788315831,-690.55913287,0.0002431,2]
[344792980,1733788315841,-500.0,0.0002431,2]
[344792981,1733788315851,-500.0,0.0002431,2]
[344792982,1733788315861,-500.0,0.0002431,2]
[344792983,1733788315871,-500.0,0.0002431,2]
[344792984,1733788315881,-500.0,0.0002431,2]
[344792985,1733788315891,-500.0,0.0002431,2]
[344792986,1733788315901,-500.0,0.0002431,2]
[344792987,1733788315911,-500.0,0.0002431,2]
[344792988,1733788315920,-500.0,0.0002431,2]
[344792989,1733788315930,-500.0,0.0002431,2]
[344792990,1733788315939,-500.0,0.0002431,2]
[344792991,1733788315948,-500.0,0.0002431,2]
[344792992,1733788315958,-500.0,0.0002431,2]
[344792993,1733788315967,-1200.0,0.0002431,2]
[344792994,1733788315978,-500.0,0.0002431,2]
[344792995,1733788315987,-500.0,0.0002431,2]
[344792996,1733788315997,-1200.0,0.0002431,2]
[344792997,1733788316007,-500.0,0.0002431,2]
[344792998,1733788316017,-500.0,0.0002431,2]
[344792999,1733788316027,-1200.0,0.0002431,2]
[344793000,1733788316036,-500.0,0.0002431,2]
[344793001,1733788316047,-636.23213001,0.0002431,2]
[344793002,1733788316057,-1200.0,0.0002431,2]
[344793003,1733788316066,-500.0,0.0002431,2]
[344793004,1733788316076,-1200.0,0.0002431,2]
[344793005,1733788316086,-500.0,0.0002431,2]
[344793006,1733788316097,-500.0,0.0002431,2]
[344793007,1733788316108,-1200.0,0.0002431,2]
[344793008,1733788316118,-580.39138789,0.0002431,2]
[344793009,1733788316128,-1200.0,0.0002431,2]
[344793010,1733788316139,-1200.0,0.0002431,2]
[344793011,1733788316149,-1200.0,0.0002431,2]
[344793012,1733788316159,-1200.0,0.0002431,2]
[344793013,1733788316170,-1200.0,0.0002431,2]
[344793014,1733788316180,-1200.0,0.0002431,2]
[344793015,1733788316190,-1200.0,0.0002431,2]
[344793016,1733788316200,-1257.76189339,0.0002431,2]
[344793017,1733788316210,-500.0,0.0002431,2]
[344793018,1733788316220,-500.0,0.0002431,2]
[344793019,1733788316230,-500.0,0.0002431,2]
[344793020,1733788316240,-500.0,0.0002431,2]
[344793021,1733788316250,-500.0,0.0002431,2]
[344793022,1733788316260,-500.0,0.0002431,2]
[344793023,1733788316271,-500.0,0.0002431,2]
[344793024,1733788316282,-500.0,0.0002431,2]
[344793025,1733788316292,-500.0,0.0002431,2]
[344793026,1733788316302,-500.0,0.0002431,2]
[344793027,1733788316312,-500.0,0.0002431,2]
[344793028,1733788316327,-500.0,0.0002431,2]
[344793029,1733788316337,-500.0,0.0002431,2]
[344793030,1733788316350,-653.78044569,0.0002431,2]
[344793031,1733788316360,-462.35,0.00024317,2]
[344793032,1733788316369,-300.0,0.00024361,2]
[344793033,1733788316379,-150.0,0.00024361,2]
[344793034,1733788316389,-5000.0,0.00024377,2]
[344793035,1733788316399,-1434.51,0.0002441,30]
[344793036,1733788316409,-338.20646002,0.0002442,2]
[344793037,1733788316419,-25000.0,0.00024434,2]
[344793038,1733788316429,-2500.0,0.00024436,2]
[344793039,1733788316438,-5000.0,0.00024441,2]
[344793040,1733788316448,-16810.35255008,0.0002445,2]
[344793041,1733788316460,-2421.1,0.00024458,2]
[344793042,1733788316474,-5000.0,0.00024469,2]
[344793043,1733788316487,-5000.0,0.00024481,2]
[344793044,1733788316498,-300.0,0.00024498,13]
[344793045,1733788316508,-300.0,0.00024498,13]
[344793046,1733788316518,-300.0,0.00024498,13]
[344793047,1733788316528,-300.0,0.00024498,13]
[344793048,1733788316539,-300.0,0.00024498,13]
[344793049,1733788316549,-1461416.46600567,0.000245,4]
[344793050,1733788316559,-151.0,0.000245,7]
[344793051,1733788316571,-151.0,0.000245,7]
[344793052,1733788316580,-151.0,0.000245,7]
[344793053,1733788316590,-445.52312,0.000245,7]
[344793054,1733788316601,-151.0,0.000245,7]
[344793055,1733788316612,-151.0,0.000245,7]
[344793056,1733788316622,-151.0,0.000245,7]
[344793057,1733788316632,-151.0,0.000245,7]
[344793058,1733788316643,-151.0,0.000245,7]
[344793059,1733788316654,-151.0,0.000245,7]
[344793060,1733788316664,-151.0,0.000245,7]
[344793061,1733788316674,-151.0,0.000245,7]
[344793062,1733788316684,-519.788415,0.000245,7]
[344793063,1733788316695,-519.788415,0.000245,7]
[344793064,1733788316706,-151.0,0.000245,7]
[344793065,1733788316716,-151.0,0.000245,7]
[344793066,1733788316726,-151.0,0.000245,7]
[344793067,1733788316736,-151.0,0.000245,7]
[344793068,1733788316746,-151.0,0.000245,7]
[344793069,1733788316756,-151.0,0.000245,7]
[344793070,1733788316766,-220.077492,0.000245,7]
[344793071,1733788316775,-220.077492,0.000245,7]
[344793072,1733788316786,-473.987952,0.000245,7]
[344793073,1733788316795,-151.0,0.000245,7]
[344793074,1733788316805,-473.987952,0.000245,7]
[344793075,1733788316815,-151.0,0.000245,7]
[344793076,1733788316828,-721.54923,0.000245,7]
[344793077,1733788316838,-721.54923,0.000245,7]
[344793078,1733788316848,-151.0,0.000245,7]
[344793079,1733788316859,-151.0,0.000245,7]
[344793080,1733788316869,-2500.0,0.00024506,2]
[344793081,1733788316879,-152.0,0.00024507,8]
[344793082,1733788316890,-4259.88,0.00024517,2]
[344793083,1733788316901,-155.0,0.0002452,30]
[344793084,1733788316911,-25000.0,0.00024524,2]
[344793085,1733788316920,-5000.0,0.00024534,2]
[344793086,1733788316930,-25000.0,0.00024543,2]
[344793087,1733788316940,-25000.0,0.00024547,2]
[344793088,1733788316950,-5000.0,0.00024575,2]
[344793089,1733788316960,-7339.29,0.00024608,2]
[344793090,1733788316970,-5000.0,0.00024632,2]
[344793091,1733788316980,-5000.0,0.00024633,2]
[344793092,1733788316990,-1577.13,0.00024637,2]
[344793093,1733788317000,-1000.0,0.00024657,2]
[344793094,1733788317010,-409.94739244,0.00024657,2]
[344793095,1733788317020,-1000.0,0.00024658,2]
[344793096,1733788317031,-8676.55,0.00024658,4]
[344793097,1733788317041,-300.0,0.00024658,10]
[344793098,1733788317051,-300.0,0.00024658,10]
[344793099,1733788317061,-300.0,0.00024658,10]
[344793100,1733788317075,-300.0,0.00024658,10]
[344793101,1733788317085,-300.0,0.00024658,10]
[344793102,1733788317095,-300.0,0.00024658,10]
[344793103,1733788317105,-300.0,0.00024658,10]
[344793104,1733788317115,-300.0,0.00024658,10]
[344793105,1733788317125,-300.0,0.00024658,10]
[344793106,1733788317135,-300.0,0.00024658,10]
[344793107,1733788317145,-300.0,0.00024658,10]
[344793108,1733788317155,-300.0,0.00024658,10]
[344793109,1733788317165,-300.0,0.00024658,10]
[344793110,1733788317175,-300.0,0.00024658,10]
[344793111,1733788317185,-300.0,0.00024658,10]
[344793112,1733788317195,-300.0,0.00024658,10]
[344793113,1733788317205,-300.0,0.00024658,10]
[344793114,1733788317215,-300.0,0.00024658,10]
[344793115,1733788317226,-300.0,0.00024658,10]
[344793116,1733788317237,-300.0,0.00024658,10]
[344793117,1733788317247,-300.0,0.00024658,10]
[344793118,1733788317258,-300.0,0.00024658,10]
[344793119,1733788317268,-300.0,0.00024658,10]
[344793120,1733788317278,-300.0,0.00024658,10]
[344793121,1733788317288,-300.0,0.00024658,10]
[344793122,1733788317299,-300.0,0.00024658,10]
[344793123,1733788317309,-300.0,0.00024658,10]
[344793124,1733788317321,-300.0,0.00024658,10]
[344793125,1733788317333,-300.0,0.00024658,10]
[344793126,1733788317344,-300.0,0.00024658,10]
[344793127,1733788317354,-300.0,0.00024658,10]
[344793128,1733788317365,-300.0,0.00024658,10]
[344793129,1733788317376,-300.0,0.00024658,10]
[344793130,1733788317386,-300.0,0.00024658,10]
[344793131,1733788317397,-300.0,0.00024658,10]
[344793132,1733788317408,-300.0,0.00024658,10]
[344793133,1733788317418,-300.0,0.00024658,10]
[344793134,1733788317429,-300.0,0.00024658,10]
[344793135,1733788317439,-300.0,0.00024658,10]
[344793136,1733788317450,-300.0,0.00024658,10]
[344793137,1733788317460,-300.0,0.00024658,10]
[344793138,1733788317471,-300.0,0.00024658,10]
[344793139,1733788317481,-300.0,0.00024658,10]
[344793140,1733788317491,-300.0,0.00024658,10]
[344793141,1733788317503,-300.0,0.00024658,10]
[344793142,1733788317516,-300.0,0.00024658,10]
[344793143,1733788317527,-300.0,0.00024658,10]
[344793144,1733788317537,-300.0,0.00024658,10]
[344793145,1733788317548,-300.0,0.00024658,10]
[344793146,1733788317558,-300.0,0.00024658,10]
[344793147,1733788317571,-300.0,0.00024658,10]
[344793148,1733788317582,-300.0,0.00024658,10]
[344793149,1733788317592,-300.0,0.00024658,10]
[344793150,1733788317603,-300.0,0.00024658,10]
[344793151,1733788317617,-300.0,0.00024658,10]
[344793152,1733788317627,-300.0,0.00024658,10]
[344793153,1733788317637,-300.0,0.00024658,10]
[344793154,1733788317648,-300.0,0.00024658,10]
[344793155,1733788317660,-300.0,0.00024658,10]
[344793156,1733788317670,-278.13636827,0.00024658,10]
[344793157,1733788317681,-207.0,0.0002468,2]
[344793158,1733788317691,-203.0,0.0002468,2]
[344793159,1733788317701,-202.0,0.0002468,2]
[344793160,1733788317711,-5000.0,0.00024687,2]
[344793161,1733788317721,-400.0,0.000247,2]
[344793162,1733788317732,-204.0,0.000247,2]
[344793163,1733788317742,-250.0,0.000247,2]
[344793164,1733788317753,-200.0,0.00024727,120]
[344793165,1733788317764,-4036.34,0.00024733,2]
[344793166,1733788317775,-5000.0,0.00024746,2]
[344793167,1733788317785,-5000.0,0.00024759,2]
[344793168,1733788317795,-1430.24,0.00024792,2]
[344793169,1733788317806,-5000.0,0.00024807,2]
[344793170,1733788317816,-5000.0,0.00024825,2]
[344793171,1733788317827,-25000.0,0.00024858,2]
[344793172,1733788317837,-5000.0,0.00024861,2]
[344793173,1733788317847,-4489.07,0.00024878,2]
[344793174,1733788317856,-64125.38720872,0.000249,2]
[344793175,1733788317867,-5000.0,0.0002491,2]
[344793176,1733788317877,-2175.72,0.00024937,2]
[344793177,1733788317887,-500.0,0.00024943,120]
[344793178,1733788317897,-5000.0,0.00024952,2]
[344793179,1733788317908,-5000.0,0.0002496,2]
[344793180,1733788317917,-1264.57,0.00024961,2]
[344793181,1733788317927,-5000.0,0.00024967,2]
[344793182,1733788317938,-100000.0,0.00025,5]
[344793183,1733788317948,-3600.0,0.00025,26]
[344793184,1733788317958,-120552.80618627,0.00025,2]
[344793185,1733788317968,-102275.51404696,0.00025,2]
[344793186,1733788317978,-21519.53456228,0.00025,10]
[344793187,1733788317989,-1589.91059985,0.00025,2]
[344793188,1733788317999,-254.18068283,0.00025,2]
[344793189,1733788318009,-2906.39469818,0.00025,2]
[344793190,1733788318020,-200.00716018,0.00025,2]
[344793191,1733788318032,-18861.0,0.00025,2]
[344793192,1733788318043,-15800.0,0.00025,3]
[344793193,1733788318054,-5000.0,0.00025,3]
[344793194,1733788318064,-500.0,0.00025,2]
[344793195,1733788318076,-60000.0,0.00025,10]
[344793196,1733788318088,-49724.20151109,0.00025,4]
[344793197,1733788318098,-14775.41102485,0.00025,2]
[344793198,1733788318109,-150.0,0.00025,2]
[344793199,1733788318120,-122884.0,0.00025,3]
[344793200,1733788318130,-32224.0,0.00025,4]
[344793201,1733788318141,-100000.0,0.00025,7]
[344793202,1733788318151,-1000.0,0.00025,10]
[344793203,1733788318161,-15068.82677508,0.00025,14]
[344793204,1733788318172,-244.0,0.00025,2]
[344793205,1733788318182,-5000.0,0.00025,2]
[344793206,1733788318193,-5000.0,0.00025,2]
[344793207,1733788318204,-750.0,0.00025,2]
[344793208,1733788318215,-11766.73882732,0.00025,2]
[344793209,1733788318225,-605.506964,0.00025,2]
[344793210,1733788318235,-6200.0,0.00025032,7]
[344793211,1733788318246,-500.0,0.00025032,7]
[344793212,1733788318256,-2200.0,0.00025032,7]
[344793213,1733788318267,-152.0,0.0002506,9]
[344793214,1733788318277,-3229.79291245,0.000251,2]
[344793215,1733788318288,-1000.0,0.000252,10]
[344793216,1733788318299,-1000.0,0.000255,10]
[344793217,1733788318310,-149163.25530308,0.000255,2]
[344793218,1733788318325,-188.55,0.00025548,2]
[344793219,1733788318336,-233.27352832,0.00025581,7]
[344793220,1733788318348,-500.0,0.00025596,120]
[344793221,1733788318359,-583.16984282,0.000256,2]
[344793222,1733788318371,-152.0,0.00025613,10]
[344793223,1733788318383,-1864.197,0.00025677,2]
[344793224,1733788318394,-1055.782,0.00025677,2]
[344793225,1733788318405,-1253.0,0.00025677,2]
[344793226,1733788318415,-207.0,0.0002569,2]
[344793227,1733788318427,-203.0,0.0002569,2]
[344793228,1733788318438,-202.0,0.0002569,2]
[344793229,1733788318677,-204.0,0.0002571,2]
[344793230,1733788318688,-1000.0,0.0002575,10]
[344793231,1733788318698,-6200.0,0.00025854,7]
[344793232,1733788318708,-2200.0,0.00025854,7]
[344793233,1733788318718,-500.0,0.00025854,7]
[344793234,1733788318727,-512628.77034851,0.000259,2]
[344793235,1733788318736,-73202.9781537,0.000259,2]
[344793236,1733788318747,-272475.1215272,0.000259,2]
[344793237,1733788318756,-572.90888381,0.0002599,2]
[344793238,1733788318766,-100000.0,0.00026,8]
[344793239,1733788318775,-4316.66937118,0.00026,2]
[344793240,1733788318785,-4433.65,0.00026,2]
[344793241,1733788318795,-15800.0,0.00026,3]
[344793242,1733788318805,-762743.19736233,0.00026,2]
[344793243,1733788318815,-1461.41776009,0.00026,2]
[344793244,1733788318826,-200.0,0.00026,2]
[344793245,1733788318836,-6688.91950416,0.00026,2]
[344793246,1733788318846,-6458.51376145,0.00026,2]
[344793247,1733788318856,-2618.45646637,0.00026,2]
[344793248,1733788318866,-2608.38113357,0.00026,2]
[344793249,1733788318876,-1500.0,0.00026,12]
[344793250,1733788318886,-272.33300025,0.00026,2]
[344793251,1733788318897,-121934.0,0.00026,5]
[344793252,1733788318906,-7400.0,0.00026,2]
[344793253,1733788318916,-15140.65707507,0.00026,2]
[344793254,1733788318925,-519.56272452,0.0002604,2]
[344793255,1733788318934,-500.0,0.00026149,120]
[344793256,1733788318944,-200.01,0.00026155,3]
[344793257,1733788318954,-152.0,0.00026166,11]
[344793258,1733788318964,-2000.0,0.00026223,120]
[344793259,1733788318974,-55975.80986616,0.00026227,4]
[344793260,1733788318984,-1078.98847036,0.00026227,4]
[344793261,1733788318994,-8182.43,0.000263,14]
[344793262,1733788319003,-155.0,0.00026376,30]
[344793263,1733788319013,-26210.07481895,0.000264,2]
[344793264,1733788319023,-1238.65,0.0002648,2]
[344793265,1733788319032,-692.88,0.00026484,2]
[344793266,1733788319043,-3000.0,0.000265,2]
[344793267,1733788319052,-6200.0,0.00026676,7]
[344793268,1733788319061,-2200.0,0.00026676,7]
[344793269,1733788319071,-500.0,0.00026676,7]
[344793270,1733788319081,-207.0,0.0002671,2]
[344793271,1733788319090,-203.0,0.0002671,2]
[344793272,1733788319100,-202.0,0.0002671,2]
[344793273,1733788319110,-207.0,0.0002671,2]
[344793274,1733788319120,-152.0,0.00026719,12]
[344793275,1733788319129,-199.99,0.0002672,3]
[344793276,1733788319139,-204.0,0.0002672,2]
[344793277,1733788319149,-1000.0,0.00026849,2]
[344793278,1733788319159,-1000.0,0.00026849,2]
[344793279,1733788319168,-1000.0,0.00026849,2]
[344793280,1733788319177,-1000.0,0.00026849,2]
[344793281,1733788319187,-1000.0,0.00026849,2]
[344793282,1733788319197,-1000.0,0.00026849,2]
[344793283,1733788319207,-444.7793755,0.00026849,2]
[344793284,1733788319216,-768.25,0.00026902,2]
[344793285,1733788319226,-435.57,0.00026902,2]
[344793286,1733788319235,-768.25,0.00026902,2]
[344793287,1733788319246,-435.57,0.00026902,2]
[344793288,1733788319255,-303.46402924,0.00026919,2]
[344793289,1733788319265,-502.13065587,0.0002692,2]
[344793290,1733788319274,-200.0,0.0002692,2]
[344793291,1733788319285,-303.46402924,0.0002692,2]
[344793292,1733788319295,-1315.63008783,0.0002692,2]
[344793293,1733788319304,-1754.17345044,0.0002692,2]
[344793294,1733788319314,-322.49122053,0.0002692,2]
[344793295,1733788319326,-986.72256588,0.0002692,2]
[344793296,1733788319335,-200.0,0.00026921,2]
[344793297,1733788319345,-4644.03557193,0.00026921,2]
[344793298,1733788319354,-200.0,0.00026921,2]
[344793299,1733788319364,-1586.98083832,0.00026921,2]
[344793300,1733788319374,-2821.29926813,0.00026922,2]
[344793301,1733788319383,-241.8684154,0.00026922,2]
[344793302,1733788319393,-211.83637045,0.00026922,2]
[344793303,1733788319403,-282.44849393,0.00026923,2]
[344793304,1733788319412,-6192.04742925,0.00026923,2]
[344793305,1733788319422,-200.0,0.00026923,2]
[344793306,1733788319431,-200.0,0.00026923,2]
[344793307,1733788319441,-892.67672156,0.00026923,2]
[344793308,1733788319450,-404.61870566,0.00026923,2]
[344793309,1733788319459,-539.49160754,0.00026923,2]
[344793310,1733788319468,-986.72256588,0.00026923,2]
[344793311,1733788319477,-303.46402924,0.00026923,2]
[344793312,1733788319486,-26093.23690348,0.00026924,2]
[344793313,1733788319496,-322.49122053,0.00026924,2]
[344793314,1733788319505,-14677.44575821,0.00026924,2]
[344793315,1733788319515,-1705.05989545,0.00026925,2]
[344793316,1733788319525,-669.50754117,0.00026925,2]
[344793317,1733788319535,-502.13065587,0.00026925,2]
[344793318,1733788319544,-236.17840963,0.00026926,2]
[344793319,1733788319553,-555.0314433,0.00026926,2]
[344793320,1733788319562,-2115.9744511,0.00026927,2]
[344793321,1733788319574,-200.0,0.00026927,2]
[344793322,1733788319583,-200.0,0.00026927,2]
[344793323,1733788319592,-11008.08431865,0.00026927,2]
[344793324,1733788319601,-1315.63008783,0.00026927,2]
[344793325,1733788319611,-3483.02667895,0.00026927,2]
[344793326,1733788319623,-539.49160754,0.00026928,2]
[344793327,1733788319632,-200.0,0.00026928,2]
[344793328,1733788319642,-322.49122053,0.00026928,2]
[344793329,1733788319652,-502.13065587,0.00026928,2]
[344793330,1733788319663,-6192.04742925,0.00026928,2]
[344793331,1733788319673,-719.32214339,0.00026929,2]
[344793332,1733788319682,-1190.23562874,0.00026929,2]
[344793333,1733788319694,-200.0,0.0002693,2]
[344793334,1733788319704,-200.0,0.0002693,2]
[344793335,1733788319714,-26093.23690348,0.0002693,2]
[344793336,1733788319723,-200.0,0.0002693,2]
[344793337,1733788319733,-282.44849393,0.0002693,2]
[344793338,1733788319742,-1754.17345044,0.0002693,2]
[344793339,1733788319752,-502.13065587,0.0002693,2]
[344793340,1733788319766,-5015.64314334,0.00026931,2]
[344793341,1733788319781,-200.0,0.00026931,2]
[344793342,1733788319795,-3761.7323575,0.00026931,2]
[344793343,1733788319805,-986.72256588,0.00026931,2]
[344793344,1733788319815,-200.0,0.00026931,2]
[344793345,1733788319825,-376.59799191,0.00026931,2]
[344793346,1733788319835,-404.61870566,0.00026932,2]
[344793347,1733788319845,-236.17840963,0.00026932,2]
[344793348,1733788319854,-2821.29926813,0.00026932,2]
[344793349,1733788319865,-4644.03557193,0.00026932,2]
[344793350,1733788319875,-200.0,0.00026932,2]
[344793351,1733788319884,-986.72256588,0.00026933,2]
[344793352,1733788319894,-200.0,0.00026933,2]
[344793353,1733788319903,-376.59799191,0.00026933,2]
[344793354,1733788319912,-1754.17345044,0.00026933,2]
[344793355,1733788319922,-416.27358248,0.00026933,2]
[344793356,1733788319931,-416.27358248,0.00026934,2]
[344793357,1733788319941,-2338.89793393,0.00026935,2]
[344793358,1733788319950,-2273.41319393,0.00026935,2]
[344793359,1733788319960,-200.0,0.00026935,2]
[344793360,1733788319969,-200.0,0.00026936,2]
[344793361,1733788319978,-200.0,0.00026936,2]
[344793362,1733788319988,-1190.23562874,0.00026936,2]
[344793363,1733788319997,-555.0314433,0.00026936,2]
[344793364,1733788320007,-211.83637045,0.00026936,2]
[344793365,1733788320017,-892.67672156,0.00026937,2]
[344793366,1733788320027,-322.49122053,0.00026938,2]
[344793367,1733788320037,-2273.41319393,0.00026938,2]
[344793368,1733788320046,-236.17840963,0.00026938,2]
[344793369,1733788320056,-719.32214339,0.00026939,2]
[344793370,1733788320066,-14677.44575821,0.00026939,2]
[344793371,1733788320077,-555.0314433,0.0002694,2]
[344793372,1733788320087,-8256.06323899,0.0002694,2]
[344793373,1733788320097,-200.0,0.0002694,2]
[344793374,1733788320107,-200.0,0.00026941,2]
[344793375,1733788320117,-211.83637045,0.00026941,2]
[344793376,1733788320127,-2338.89793393,0.00026941,2]
[344793377,1733788320136,-3761.7323575,0.00026942,2]
[344793378,1733788320147,-892.67672156,0.00026942,2]
[344793379,1733788320156,-200.0,0.00026943,2]
[344793380,1733788320166,-3761.7323575,0.00026943,2]
[344793381,1733788320176,-669.50754117,0.00026943,2]
[344793382,1733788320185,-6192.04742925,0.00026943,2]
[344793383,1733788320195,-502.13065587,0.00026943,2]
[344793384,1733788320206,-241.8684154,0.00026944,2]
[344793385,1733788320215,-200.0,0.00026945,2]
[344793386,1733788320226,-200.0,0.00026945,2]
[344793387,1733788320236,-282.44849393,0.00026945,2]
[344793388,1733788320247,-404.61870566,0.00026945,2]
[344793389,1733788320257,-2821.29926813,0.00026945,2]
[344793390,1733788320268,-2273.41319393,0.00026945,2]
[344793391,1733788320277,-200.0,0.00026945,2]
[344793392,1733788320288,-1705.05989545,0.00026946,2]
[344793393,1733788320298,-892.67672156,0.00026946,2]
[344793394,1733788320308,-11008.08431865,0.00026946,2]
[344793395,1733788320318,-892.67672156,0.00026947,2]
[344793396,1733788320332,-3483.02667895,0.00026947,2]
[344793397,1733788320342,-2821.29926813,0.00026947,2]
[344793398,1733788320352,-200.0,0.00026947,2]
[344793399,1733788320362,-200.0,0.00026947,2]
[344793400,1733788320372,-200.0,0.00026947,2]
[344793401,1733788320383,-26093.23690348,0.00026947,2]
[344793402,1733788320393,-200.0,0.00026948,2]
[344793403,1733788320403,-200.0,0.00026948,2]
[344793404,1733788320413,-1705.05989545,0.00026948,2]
[344793405,1733788320423,-200.0,0.00026948,2]
[344793406,1733788320433,-3483.02667895,0.00026948,2]
[344793407,1733788320443,-1705.05989545,0.00026949,2]
[344793408,1733788320452,-200.0,0.00026949,2]
[344793409,1733788320463,-200.0,0.00026949,2]
[344793410,1733788320473,-200.0,0.00026949,2]
[344793411,1733788320482,-200.0,0.0002695,2]
[344793412,1733788320492,-3118.53057857,0.0002695,2]
[344793413,1733788320501,-5015.64314334,0.0002695,2]
[344793414,1733788320511,-2338.89793393,0.0002695,2]
[344793415,1733788320521,-200.0,0.0002695,2]
[344793416,1733788320530,-555.0314433,0.00026951,2]
[344793417,1733788320540,-14677.44575821,0.00026951,2]
[344793418,1733788320549,-200.0,0.00026951,2]
[344793419,1733788320559,-1190.23562874,0.00026951,2]
[344793420,1733788320571,-740.04192441,0.00026952,2]
[344793421,1733788320581,-14677.44575821,0.00026952,2]
[344793422,1733788320591,-740.04192441,0.00026952,2]
[344793423,1733788320601,-200.0,0.00026952,2]
[344793424,1733788320612,-200.0,0.00026952,2]
[344793425,1733788320623,-14677.44575821,0.00026952,2]
[344793426,1733788320632,-200.0,0.00026952,2]
[344793427,1733788320642,-502.13065587,0.00026952,2]
[344793428,1733788320653,-5015.64314334,0.00026952,2]
[344793429,1733788320663,-19569.92767761,0.00026953,2]